[Event "Championnat d'Europe Rapide"]
[Date "2024.12.08"]
[White "Schneider, Ilja"]
[Black "Saric, Ante"]
[WhiteElo "2414"]
[BlackElo "2482"]
[Round "9.13"]
[Result "1/2-1/2"]
[TimeControl "900+10"]

1. e4 {[%emt 00:00:04] [%clk 00:15:18]} c5 {[%emt 00:00:01] [%clk 00:15:17]} 2.
Nc3 {[%emt 00:00:02] [%clk 00:15:27]} g6 {[%emt 00:00:23] [%clk 00:15:03]} 3. d4
{[%clk 00:15:36]} cxd4 {[%emt 00:00:02] [%clk 00:15:12]} 4. Qxd4 {[%clk
00:15:45]} Nf6 {[%clk 00:15:21]} 5. Nf3 {[%emt 00:00:01] [%clk 00:15:54]} Nc6
{[%clk 00:15:29]} 6. Qa4 {[%clk 00:16:03]} d6 {[%emt 00:00:02] [%clk 00:15:37]}
7. e5 {[%clk 00:16:12]} dxe5 {[%clk 00:15:46]} 8. Nxe5 {[%emt 00:00:01] [%clk
00:16:21]} Bg7 {[%clk 00:15:55]} 9. Bb5 {[%emt 00:00:01] [%clk 00:16:30]} O-O
{[%emt 00:00:06] [%clk 00:15:58]} 10. Nxc6 {[%clk 00:16:39]} bxc6 {[%emt
00:00:02] [%clk 00:16:07]} 11. Bxc6 {[%clk 00:16:48]} Rb8 {[%emt 00:00:44] [%clk
00:15:34]} 12. O-O {[%emt 00:00:02] [%clk 00:16:56]} Qc7 {[%emt 00:00:07] [%clk
00:15:37]} 13. Re1 {[%emt 00:00:02] [%clk 00:17:04]} Rb6 {[%emt 00:02:55] [%clk
00:12:52]} 14. Bf3 {[%emt 00:00:03] [%clk 00:17:11]} Bb7 {[%emt 00:00:24] [%clk
00:12:38]} 15. Nb5 {[%emt 00:05:25] [%clk 00:11:56]} Qd7 {[%emt 00:02:49] [%clk
00:10:00]} 16. Bxb7 {[%emt 00:00:01] [%clk 00:12:04]} Qxb7 {[%emt 00:00:27]
[%clk 00:09:43]} 17. c4 {[%emt 00:00:06] [%clk 00:12:08]} a6 {[%emt 00:00:16]
[%clk 00:09:37]} 18. Nc3 {[%emt 00:00:11] [%clk 00:12:07]} Rb4 {[%emt 00:00:16]
[%clk 00:09:31]} 19. Qa3 {[%emt 00:00:14] [%clk 00:12:03]} e6 {[%emt 00:00:18]
[%clk 00:09:23]} 20. b3 {[%emt 00:01:51] [%clk 00:10:23]} Ng4 {[%emt 00:00:37]
[%clk 00:08:56]} 21. Bb2 {[%emt 00:00:46] [%clk 00:09:47]} Qb8 {[%emt 00:00:13]
[%clk 00:08:52]} 22. h3 {[%emt 00:01:45] [%clk 00:08:12]} Ne5 {[%emt 00:03:31]
[%clk 00:05:31]} 23. Re2 {[%emt 00:04:06] [%clk 00:04:16]} Nd3 {[%emt 00:01:07]
[%clk 00:04:34]} 24. Nd1 {[%emt 00:00:10] [%clk 00:04:16]} Rd8 {[%emt 00:01:51]
[%clk 00:02:53]} 25. Bxg7 {[%emt 00:00:06] [%clk 00:04:20]} Kxg7 {[%clk
00:03:02]} 26. Rd2 {[%emt 00:01:00] [%clk 00:03:30]} Qe5 {[%emt 00:02:25] [%clk
00:00:47]} 27. Nb2 {[%emt 00:00:24] [%clk 00:03:16]} Qc3 {[%emt 00:00:26] [%clk
00:00:32]} 28. Rdd1 {[%emt 00:01:15] [%clk 00:02:11]} a5 {[%emt 00:00:22] [%clk
00:00:20]} 29. Rab1 {[%emt 00:00:50] [%clk 00:01:30]} Rbb8 {[%emt 00:00:12]
[%clk 00:00:18]} 30. Nxd3 {[%emt 00:00:11] [%clk 00:01:29]} Rxd3 {[%emt
00:00:02] [%clk 00:00:26]} 31. Rdc1 {[%emt 00:00:26] [%clk 00:01:13]} Qd4 {[%emt
00:00:14] [%clk 00:00:23]} 32. Qb2 {[%emt 00:00:02] [%clk 00:01:21]} Qxb2 {[%emt
00:00:06] [%clk 00:00:26]} 33. Rxb2 {[%clk 00:01:30]} a4 {[%emt 00:00:01] [%clk
00:00:36]} 34. Rcb1 {[%emt 00:00:14] [%clk 00:01:26]} Rc3 {[%emt 00:00:06] [%clk
00:00:39]} 35. Kf1 {[%emt 00:00:39] [%clk 00:00:57]} a3 {[%emt 00:00:02] [%clk
00:00:47]} 36. Rd2 {[%clk 00:01:07]} Rxc4 {[%clk 00:00:56]} 37. Ke1 {[%emt
00:00:13] [%clk 00:01:04]} Rc3 {[%emt 00:00:06] [%clk 00:01:00]} 38. Rbd1 {[%emt
00:00:07] [%clk 00:01:07]} Rb5 {[%emt 00:00:19] [%clk 00:00:52]} 39. Rd3 {[%emt
00:00:08] [%clk 00:01:08]} Rc2 {[%emt 00:00:10] [%clk 00:00:52]} 40. R1d2 {[%emt
00:00:08] [%clk 00:01:11]} Rc1+ {[%emt 00:00:18] [%clk 00:00:44]} 41. Rd1 {[%emt
00:00:06] [%clk 00:01:15]} Rc2 {[%emt 00:00:01] [%clk 00:00:53]} 42. R1d2 {[%clk
00:01:24]} Rb2 {[%emt 00:00:25] [%clk 00:00:38]} 43. Ke2 {[%emt 00:00:02] [%clk
00:01:33]} Re5+ {[%emt 00:00:06] [%clk 00:00:42]} 44. Re3 {[%emt 00:00:13] [%clk
00:01:29]} Rc5 {[%emt 00:00:06] [%clk 00:00:47]} 45. Kd1 {[%emt 00:00:36] [%clk
00:01:03]} Rb1+ {[%emt 00:00:16] [%clk 00:00:41]} 46. Ke2 {[%clk 00:01:12]} Rcc1
{[%emt 00:00:04] [%clk 00:00:46]} 47. b4 {[%emt 00:00:16] [%clk 00:01:06]} Re1+
{[%emt 00:00:26]} 48. Kf3 {[%emt 00:00:09] [%clk 00:00:47]} Rb2 {[%emt 00:00:37]
[%clk 00:00:24]} 49. Rdd3 {[%emt 00:00:44] [%clk 00:00:13]} Rxe3+ {[%emt
00:00:09] [%clk 00:00:25]} 50. Kxe3 {[%clk 00:00:21]} Rxa2 {[%emt 00:00:02]
[%clk 00:00:33]} 51. Rb3 {[%clk 00:00:30]} Rb2 {[%emt 00:00:14] [%clk 00:00:30]}
52. Rxa3 {[%emt 00:00:01] [%clk 00:00:39]} Rxb4 {[%clk 00:00:38]} 53. Ra5 {[%emt
00:00:17] [%clk 00:00:32]} h6 {[%clk 00:00:47]} 54. g3 {[%emt 00:00:06] [%clk
00:00:37]} g5 {[%clk 00:00:56]} 55. Kf3 {[%emt 00:00:02] [%clk 00:00:46]} Kg6
{[%emt 00:00:07] [%clk 00:00:59]} 56. Ra8 {[%emt 00:00:03] [%clk 00:00:52]} Kg7
{[%emt 00:00:19] [%clk 00:00:51]} 57. Rc8 {[%emt 00:00:02] [%clk 00:00:59]} h5
{[%emt 00:00:04] [%clk 00:00:58]} 58. Ra8 {[%emt 00:00:11] [%clk 00:00:58]} h4
{[%emt 00:00:03] [%clk 00:01:05]} 59. g4 {[%emt 00:00:10] [%clk 00:00:58]} Kf6
{[%emt 00:00:24] [%clk 00:00:50]} 60. Rg8 {[%emt 00:00:03] [%clk 00:01:04]} Rb3+
{[%emt 00:00:21] [%clk 00:00:40]} 61. Kg2 {[%clk 00:01:14]} Rb5 {[%emt 00:00:02]
[%clk 00:00:49]} 62. Kf3 {[%emt 00:00:02] [%clk 00:01:21]} Ra5 {[%emt 00:00:04]
[%clk 00:00:55]} 63. Kg2 {[%emt 00:00:05] [%clk 00:01:26]} Ke7 {[%emt 00:00:11]
[%clk 00:00:54]} 64. Kf3 {[%emt 00:00:01] [%clk 00:01:35]} Rc5 {[%emt 00:00:06]
[%clk 00:00:58]} 65. Kg2 {[%emt 00:00:05] [%clk 00:01:40]} Kf6 {[%emt 00:00:10]
[%clk 00:00:58]} 66. Kf3 {[%emt 00:00:01] [%clk 00:01:49]} Rc3+ {[%emt 00:00:03]
[%clk 00:01:06]} 67. Kg2 {[%clk 00:01:58]} Ra3 {[%emt 00:00:05] [%clk 00:01:11]}
68. Kh2 {[%emt 00:00:01] [%clk 00:02:07]} e5 {[%emt 00:00:10] [%clk 00:01:11]}
69. Re8 {[%emt 00:00:11] [%clk 00:02:06]} Ra5 {[%emt 00:00:20] [%clk 00:01:01]}
70. Kg2 {[%emt 00:00:02] [%clk 00:02:14]} Kg7 {[%emt 00:00:02] [%clk 00:01:09]}
71. Kf3 {[%emt 00:00:02] [%clk 00:02:23]} f6 {[%emt 00:00:03] [%clk 00:01:16]}
72. Re7+ {[%emt 00:00:02] [%clk 00:02:30]} Kg6 {[%clk 00:01:26]} 73. Kg2 {[%emt
00:00:12] [%clk 00:02:28]} Ra8 {[%emt 00:00:07] [%clk 00:01:29]} 74. Kf3 {[%emt
00:00:03] [%clk 00:02:36]} Rf8 {[%clk 00:01:38]} 75. Ra7 {[%emt 00:00:27] [%clk
00:02:18]} Rf7 {[%clk 00:01:47]} 76. Ra6 {[%emt 00:00:10] [%clk 00:02:19]} Rd7
{[%clk 00:01:56]} 77. Ke4 {[%emt 00:00:07] [%clk 00:02:17]} Rd4+ {[%emt
00:00:08] [%clk 00:02:02]} 78. Kf3 {[%emt 00:00:02] [%clk 00:02:26]} Kf7 {[%emt
00:00:03] [%clk 00:02:09]} 79. Rb6 {[%emt 00:00:04] [%clk 00:02:31]} Ke7 {[%clk
00:02:18]} 80. Ra6 {[%emt 00:00:05] [%clk 00:02:36]} Rd3+ {[%emt 00:00:04] [%clk
00:02:23]} 81. Kg2 {[%emt 00:00:10] [%clk 00:02:37]} Rd6 {[%emt 00:00:03] [%clk
00:02:31]} 82. Ra5 {[%emt 00:00:08] [%clk 00:02:39]} Ke6 {[%clk 00:02:40]} 83.
Kf3 {[%emt 00:00:03] [%clk 00:02:45]} Rd3+ {[%emt 00:00:02] [%clk 00:02:48]} 84.
Kg2 {[%emt 00:00:01] [%clk 00:02:54]} e4 {[%emt 00:00:11] [%clk 00:02:47]} 85.
Ra8 {[%emt 00:00:32] [%clk 00:02:32]} Rd6 {[%emt 00:00:28] [%clk 00:02:29]} 86.
Ra5 {[%emt 00:00:03] [%clk 00:02:39]} Rd5 {[%emt 00:00:05] [%clk 00:02:34]} 87.
Ra8 {[%emt 00:00:08] [%clk 00:02:41]} Rd6 {[%emt 00:00:46] [%clk 00:01:58]} 88.
Ra5 {[%emt 00:00:02] [%clk 00:02:49]} Rd2 {[%emt 00:00:04] [%clk 00:02:04]} 89.
Kg1 {[%emt 00:00:22] [%clk 00:02:38]} Rd3 {[%emt 00:00:25] [%clk 00:01:49]} 90.
Kg2 {[%emt 00:00:01] [%clk 00:02:47]} e3 {[%emt 00:00:06] [%clk 00:01:52]} 91.
Ra6+ {[%emt 00:01:28] [%clk 00:01:29]} Ke5 {[%emt 00:00:17] [%clk 00:01:45]} 92.
Ra5+ {[%emt 00:00:01] [%clk 00:01:39]} Ke4 {[%emt 00:00:27] [%clk 00:01:25]} 93.
Ra4+ {[%emt 00:00:38] [%clk 00:01:13]} Rd4 {[%emt 00:00:11] [%clk 00:01:24]} 94.
Rxd4+ {[%emt 00:00:18] [%clk 00:01:05]} Kxd4 {[%emt 00:00:02] [%clk 00:01:33]}
95. Kf3 {[%clk 00:01:14]} exf2 {[%emt 00:00:29] [%clk 00:01:13]} 96. Kxf2 {[%emt
00:00:01] [%clk 00:01:23]} Ke4 {[%emt 00:00:17] [%clk 00:01:07]} 97. Ke2 {[%clk
00:01:31]} Kd5 {[%emt 00:00:19] [%clk 00:00:58]} 98. Kd3 {[%emt 00:00:03] [%clk
00:01:37]} Ke5 {[%emt 00:00:12] [%clk 00:00:57]} 99. Ke3 {[%emt 00:00:01] [%clk
00:01:46]} Ke6 {[%emt 00:00:07] [%clk 00:01:00]} 100. Ke4 {[%emt 00:00:11] [%clk
00:01:45]} f5+ {[%emt 00:00:08] [%clk 00:01:02]} 101. gxf5+ {[%emt 00:00:01]
[%clk 00:01:54]} Kf6 {[%clk 00:01:11]} 102. Ke3 {[%emt 00:00:01] [%clk
00:02:03]} Ke5 {[%emt 00:00:01] [%clk 00:01:20]} 103. Kf2 {[%emt 00:00:25] [%clk
00:01:48]} Kxf5 {[%emt 00:00:04] [%clk 00:01:27]} 104. Kf3 {[%emt 00:00:01]
[%clk 00:01:57]} Kg6 {[%emt 00:00:06] [%clk 00:01:30]} 105. Ke3 {[%emt 00:00:12]
[%clk 00:01:55]} Kf6 {[%emt 00:00:04] [%clk 00:01:37]} 106. Ke4 {[%emt 00:00:04]
[%clk 00:02:00]} Ke6 {[%emt 00:00:01] [%clk 00:01:46]} 107. Ke3 {[%emt 00:00:04]
[%clk 00:02:06]} Ke5 {[%emt 00:00:03] [%clk 00:01:54]} 108. Kf3 {[%clk
00:02:15]} Kf5 {[%emt 00:00:14] [%clk 00:01:51]} 109. Ke3 {[%clk 00:02:24]}
1/2-1/2

[Site "Europe Echecs"]

[Event "Championnat d'Europe Rapide"]
[Date "2024.12.08"]
[White "Gavrilescu, David"]
[Black "Samunenkov, Ihor"]
[WhiteElo "2549"]
[BlackElo "2543"]
[Round "9.14"]
[Result "1/2-1/2"]
[TimeControl "900+10"]

1. e4 {[%emt 00:00:04] [%clk 00:15:15]} e5 {[%emt 00:00:04] [%clk 00:15:16]} 2.
Nf3 {[%emt 00:00:05] [%clk 00:15:20]} Nf6 {[%emt 00:00:04] [%clk 00:15:23]} 3.
d4 {[%emt 00:00:44] [%clk 00:14:46]} Nxe4 {[%emt 00:00:07] [%clk 00:15:26]} 4.
dxe5 {[%emt 00:00:10] [%clk 00:14:46]} d5 {[%emt 00:00:08] [%clk 00:15:28]} 5.
Nbd2 {[%emt 00:00:02] [%clk 00:14:53]} Qd7 {[%emt 00:00:03] [%clk 00:15:35]} 6.
Bd3 {[%emt 00:00:03] [%clk 00:15:01]} Nc5 {[%emt 00:00:03] [%clk 00:15:42]} 7.
Be2 {[%emt 00:00:02] [%clk 00:15:09]} Ne6 {[%emt 00:00:13] [%clk 00:15:39]} 8.
O-O {[%emt 00:00:07] [%clk 00:15:12]} Be7 {[%emt 00:00:08] [%clk 00:15:40]} 9.
Re1 {[%emt 00:00:06] [%clk 00:15:16]} O-O {[%emt 00:00:27] [%clk 00:15:23]} 10.
Nf1 {[%emt 00:00:07] [%clk 00:15:19]} c5 {[%emt 00:00:07] [%clk 00:15:27]} 11.
Ng3 {[%emt 00:00:08] [%clk 00:15:21]} Rd8 {[%emt 00:00:08] [%clk 00:15:29]} 12.
h4 {[%emt 00:00:47] [%clk 00:14:44]} Nc6 {[%emt 00:00:33] [%clk 00:15:06]} 13.
Bd3 {[%emt 00:01:57] [%clk 00:12:56]} g6 {[%emt 00:02:08] [%clk 00:13:09]} 14.
c3 {[%emt 00:03:35] [%clk 00:09:31]} c4 {[%emt 00:04:04] [%clk 00:09:14]} 15.
Bc2 {[%emt 00:00:27] [%clk 00:09:15]} d4 {[%emt 00:00:50] [%clk 00:08:34]} 16.
Ne4 {[%emt 00:01:38] [%clk 00:07:47]} d3 {[%emt 00:02:21] [%clk 00:06:22]} 17.
Ba4 {[%emt 00:00:10] [%clk 00:07:47]} Qd5 {[%emt 00:03:28] [%clk 00:03:05]} 18.
Bxc6 {[%emt 00:02:59] [%clk 00:04:58]} bxc6 {[%emt 00:00:03] [%clk 00:03:12]}
19. Qd2 {[%emt 00:01:13] [%clk 00:03:55]} Kh8 {[%emt 00:00:11] [%clk 00:03:11]}
20. h5 {[%emt 00:01:00] [%clk 00:03:05]} g5 {[%emt 00:00:19] [%clk 00:03:01]}
21. Nf6 {[%emt 00:02:17] [%clk 00:00:58]} Bxf6 {[%emt 00:00:42] [%clk 00:02:29]}
22. exf6 {[%emt 00:00:02] [%clk 00:01:07]} h6 {[%emt 00:00:33] [%clk 00:02:05]}
23. b3 {[%emt 00:00:16] [%clk 00:01:01]} c5 {[%emt 00:00:45] [%clk 00:01:31]}
24. bxc4 {[%emt 00:00:34] [%clk 00:00:38]} Qf5 {[%emt 00:00:02] [%clk 00:01:38]}
25. Rb1 {[%emt 00:00:09] [%clk 00:00:39]} Nf4 {[%emt 00:00:27] [%clk 00:01:21]}
26. Ne5 {[%emt 00:00:33] [%clk 00:00:16]} Be6 {[%emt 00:00:10] [%clk 00:01:20]}
27. Rb7 {[%emt 00:00:09] [%clk 00:00:18]} Qxf6 {[%emt 00:01:01] [%clk 00:00:29]}
28. g3 {[%emt 00:00:07] [%clk 00:00:21]} Ne2+ {[%emt 00:00:08] [%clk 00:00:31]}
29. Rxe2 {[%emt 00:00:01] [%clk 00:00:30]} dxe2 {[%emt 00:00:02] [%clk
00:00:39]} 30. Qxe2 {[%clk 00:00:39]} Re8 {[%emt 00:00:32] [%clk 00:00:18]} 31.
f4 {[%emt 00:00:06] [%clk 00:00:43]} Rad8 {[%emt 00:00:09] [%clk 00:00:18]} 32.
Be3 {[%emt 00:00:12] [%clk 00:00:41]} Rg8 {[%emt 00:00:11] [%clk 00:00:17]} 33.
fxg5 {[%emt 00:00:08] [%clk 00:00:42]} hxg5 {[%emt 00:00:13] [%clk 00:00:15]}
34. Bxc5 {[%clk 00:00:51]} Qf5 {[%emt 00:00:09] [%clk 00:00:15]} 35. Bd4 {[%emt
00:00:03] [%clk 00:00:59]} Kh7 {[%emt 00:00:08] [%clk 00:00:17]} 36. Nc6 {[%emt
00:00:45] [%clk 00:00:23]} Rde8 {[%emt 00:00:16] [%clk 00:00:12]} 37. Ne7 {[%emt
00:00:05] [%clk 00:00:28]} Rxe7 {[%emt 00:00:09] [%clk 00:00:13]} 38. Rxe7
{[%emt 00:00:01] [%clk 00:00:37]} Rb8 {[%emt 00:00:03] [%clk 00:00:20]} 39. Rxe6
{[%emt 00:00:34] [%clk 00:00:13]} Qxe6 {[%emt 00:00:16] [%clk 00:00:14]} 40.
Qxe6 {[%emt 00:00:11] [%clk 00:00:12]} fxe6 {[%emt 00:00:02] [%clk 00:00:22]}
41. Bxa7 {[%emt 00:00:03] [%clk 00:00:19]} Ra8 {[%emt 00:00:13] [%clk 00:00:19]}
42. Be3 {[%emt 00:00:02] [%clk 00:00:27]} Kh6 {[%emt 00:00:03] [%clk 00:00:26]}
43. g4 {[%emt 00:00:02] [%clk 00:00:35]} Rxa2 {[%emt 00:00:18] [%clk 00:00:18]}
44. c5 {[%emt 00:00:06] [%clk 00:00:39]} Ra4 {[%emt 00:00:10] [%clk 00:00:18]}
45. Bd4 {[%emt 00:00:01] [%clk 00:00:48]} e5 {[%emt 00:00:02] [%clk 00:00:27]}
46. Bxe5 {[%clk 00:00:57]} Rxg4+ {[%emt 00:00:03] [%clk 00:00:35]} 47. Kf2
{[%clk 00:01:05]} Rc4 {[%emt 00:00:21] [%clk 00:00:23]} 48. Bd4 {[%emt 00:00:02]
[%clk 00:01:14]} Kxh5 {[%emt 00:00:07] [%clk 00:00:25]} 49. Ke3 {[%emt 00:00:43]
[%clk 00:00:41]} Kg6 {[%emt 00:00:23] [%clk 00:00:13]} 50. Ke4 {[%emt 00:00:04]
[%clk 00:00:47]} Kf7 {[%emt 00:00:09] [%clk 00:00:14]} 51. Kf5 {[%emt 00:00:45]
[%clk 00:00:12]} Ke7 {[%emt 00:00:03] [%clk 00:00:21]} 52. Kxg5 {[%emt 00:00:02]
[%clk 00:00:20]} Ke6 {[%emt 00:00:06] [%clk 00:00:24]} 53. Kf4 {[%emt 00:00:02]
[%clk 00:00:29]} Kd5 {[%emt 00:00:01] [%clk 00:00:33]} 54. Kf5 {[%emt 00:00:02]
[%clk 00:00:37]} Rxc5 {[%emt 00:00:03] [%clk 00:00:40]} 55. Bxc5 {[%emt
00:00:01] [%clk 00:00:46]} Kxc5 {[%clk 00:00:49]} 56. Ke5 {[%emt 00:00:01] [%clk
00:00:55]} Kc4 {[%emt 00:00:01] [%clk 00:00:58]} 57. Ke4 {[%emt 00:00:01] [%clk
00:01:04]} Kxc3 {[%emt 00:00:01] [%clk 00:01:06]} 1/2-1/2

[Site "Europe Echecs"]

[Event "Championnat d'Europe Rapide"]
[Date "2024.12.08"]
[White "Cvitan, Ognjen"]
[Black "Mohr, Georg"]
[WhiteElo "2413"]
[BlackElo "2385"]
[Round "9.15"]
[Result "0-1"]
[TimeControl "900+10"]

1. d4 {[%emt 00:00:04] [%clk 00:15:16]} e6 {[%emt 00:00:02] [%clk 00:15:19]} 2.
e4 {[%emt 00:00:04] [%clk 00:15:22]} d5 {[%emt 00:00:03] [%clk 00:15:27]} 3.
exd5 {[%emt 00:00:01] [%clk 00:15:30]} exd5 {[%emt 00:00:01] [%clk 00:15:36]} 4.
Nf3 {[%emt 00:00:07] [%clk 00:15:33]} Nf6 {[%emt 00:00:02] [%clk 00:15:44]} 5.
Bd3 {[%emt 00:00:07] [%clk 00:15:36]} c5 {[%emt 00:00:16] [%clk 00:15:38]} 6.
Bb5+ {[%emt 00:00:28] [%clk 00:15:18]} Bd7 {[%emt 00:00:20] [%clk 00:15:28]} 7.
Bxd7+ {[%emt 00:00:02] [%clk 00:15:26]} Nbxd7 {[%emt 00:00:01] [%clk 00:15:36]}
8. O-O {[%emt 00:00:04] [%clk 00:15:33]} Be7 {[%emt 00:00:10] [%clk 00:15:35]}
9. dxc5 {[%emt 00:00:10] [%clk 00:15:34]} Nxc5 {[%emt 00:00:01] [%clk 00:15:44]}
10. Nc3 {[%emt 00:00:04] [%clk 00:15:40]} O-O {[%emt 00:00:26] [%clk 00:15:29]}
11. Be3 {[%emt 00:00:11] [%clk 00:15:38]} a6 {[%emt 00:00:24] [%clk 00:15:15]}
12. Nd4 {[%emt 00:00:06] [%clk 00:15:42]} Qd7 {[%emt 00:00:34] [%clk 00:14:51]}
13. Qf3 {[%emt 00:00:10] [%clk 00:15:41]} Nce4 {[%emt 00:00:38] [%clk 00:14:23]}
14. Nf5 {[%emt 00:00:47] [%clk 00:15:04]} Rfe8 {[%emt 00:04:33] [%clk 00:10:01]}
15. Rad1 {[%emt 00:00:44] [%clk 00:14:30]} Nxc3 {[%emt 00:03:21] [%clk
00:06:50]} 16. bxc3 {[%emt 00:00:03] [%clk 00:14:37]} Qc6 {[%emt 00:00:51] [%clk
00:06:09]} 17. Bd4 {[%emt 00:01:28] [%clk 00:13:19]} Rac8 {[%emt 00:02:06] [%clk
00:04:13]} 18. Rfe1 {[%emt 00:00:22] [%clk 00:13:07]} Bf8 {[%emt 00:00:01] [%clk
00:04:22]} 19. Nh6+ {[%emt 00:00:08] [%clk 00:13:09]} gxh6 {[%emt 00:00:09]
[%clk 00:04:23]} 20. Bxf6 {[%emt 00:00:02] [%clk 00:13:17]} Bg7 {[%emt 00:00:11]
[%clk 00:04:22]} 21. Bxg7 {[%emt 00:00:15] [%clk 00:13:12]} Kxg7 {[%clk
00:04:31]} 22. Rxe8 {[%emt 00:01:18] [%clk 00:12:05]} Rxe8 {[%clk 00:04:40]} 23.
g3 {[%emt 00:00:08] [%clk 00:12:07]} Re4 {[%emt 00:00:40] [%clk 00:04:09]} 24.
Kg2 {[%emt 00:02:55] [%clk 00:09:22]} b5 {[%emt 00:00:18] [%clk 00:04:01]} 25.
Qf5 {[%emt 00:00:47] [%clk 00:08:44]} d4 {[%emt 00:00:45] [%clk 00:03:27]} 26.
f3 {[%emt 00:01:34] [%clk 00:07:21]} Re2+ {[%emt 00:00:05] [%clk 00:03:31]} 27.
Kf1 {[%emt 00:00:52] [%clk 00:06:40]} Re3 {[%emt 00:00:32] [%clk 00:03:07]} 28.
Qg4+ {[%emt 00:00:13] [%clk 00:06:39]} Kf8 {[%clk 00:03:16]} 29. Qxd4 {[%emt
00:04:35] [%clk 00:02:16]} Qxc3 {[%emt 00:00:08] [%clk 00:03:16]} 30. Qd6+
{[%emt 00:01:29] [%clk 00:00:58]} Kg7 {[%emt 00:00:05] [%clk 00:03:21]} 31. Rd3
{[%emt 00:00:07] [%clk 00:01:01]} Rxd3 {[%emt 00:00:31] [%clk 00:03:00]} 32.
Qxd3 {[%emt 00:00:10] [%clk 00:01:01]} Qxd3+ {[%emt 00:00:06] [%clk 00:03:04]}
33. cxd3 {[%clk 00:01:10]} Kf6 {[%emt 00:00:05] [%clk 00:03:09]} 34. d4 {[%emt
00:00:18] [%clk 00:01:04]} Ke6 {[%emt 00:00:01] [%clk 00:03:17]} 35. Ke2 {[%clk
00:01:13]} Kd5 {[%emt 00:00:01] [%clk 00:03:27]} 36. Kd3 {[%emt 00:00:01] [%clk
00:01:23]} b4 {[%clk 00:03:36]} 37. g4 {[%emt 00:00:02] [%clk 00:01:32]} a5
{[%emt 00:00:04] [%clk 00:03:41]} 38. h4 {[%emt 00:00:05] [%clk 00:01:36]} a4
{[%emt 00:00:06] [%clk 00:03:45]} 0-1

[Site "Europe Echecs"]

[Event "Championnat d'Europe Rapide"]
[Date "2024.12.08"]
[White "Livaic, Leon"]
[Black "Danov, Lyubomir"]
[WhiteElo "2560"]
[BlackElo "2297"]
[Round "9.16"]
[Result "1-0"]
[TimeControl "900+10"]

1. d4 {[%emt 00:00:02] [%clk 00:15:17]} d5 {[%emt 00:00:02] [%clk 00:15:18]} 2.
c4 {[%emt 00:00:02] [%clk 00:15:26]} c6 {[%emt 00:00:01] [%clk 00:15:27]} 3.
cxd5 {[%emt 00:00:04]} cxd5 {[%clk 00:15:35]} 4. Bf4 {[%emt 00:00:01] [%clk
00:15:42]} Nc6 {[%emt 00:00:11] [%clk 00:15:34]} 5. e3 {[%emt 00:00:01] [%clk
00:15:51]} e6 {[%emt 00:00:21] [%clk 00:15:22]} 6. Nc3 {[%emt 00:00:02] [%clk
00:15:59]} Bd6 {[%emt 00:00:11] [%clk 00:15:21]} 7. Bxd6 {[%emt 00:00:03] [%clk
00:16:07]} Qxd6 {[%emt 00:00:02] [%clk 00:15:29]} 8. Bd3 {[%emt 00:00:01] [%clk
00:16:15]} Nge7 {[%emt 00:00:41] [%clk 00:14:58]} 9. Nf3 {[%emt 00:00:03] [%clk
00:16:22]} f5 {[%emt 00:00:11] [%clk 00:14:58]} 10. O-O {[%emt 00:00:19] [%clk
00:16:14]} O-O {[%emt 00:00:02] [%clk 00:15:05]} 11. Qb3 {[%emt 00:01:19] [%clk
00:15:05]} b6 {[%emt 00:00:19] [%clk 00:14:56]} 12. Rfc1 {[%emt 00:00:39] [%clk
00:14:36]} Bd7 {[%emt 00:00:05] [%clk 00:15:00]} 13. Nb5 {[%emt 00:00:10] [%clk
00:14:37]} Qb8 {[%emt 00:00:32] [%clk 00:14:37]} 14. Qa3 {[%emt 00:00:18] [%clk
00:14:30]} a6 {[%emt 00:00:48] [%clk 00:13:59]} 15. Nc3 {[%emt 00:00:23] [%clk
00:14:17]} b5 {[%emt 00:00:31] [%clk 00:13:38]} 16. Ne2 {[%emt 00:00:09] [%clk
00:14:17]} b4 {[%emt 00:00:22] [%clk 00:13:27]} 17. Qb3 {[%emt 00:00:02] [%clk
00:14:25]} Rc8 {[%emt 00:00:36] [%clk 00:13:01]} 18. Rc5 {[%emt 00:00:54] [%clk
00:13:41]} a5 {[%emt 00:00:26] [%clk 00:12:45]} 19. Rac1 {[%emt 00:00:50] [%clk
00:13:00]} a4 {[%emt 00:00:54] [%clk 00:12:02]} 20. Qd1 {[%emt 00:00:04] [%clk
00:13:05]} a3 {[%emt 00:00:05] [%clk 00:12:07]} 21. b3 {[%emt 00:00:06] [%clk
00:13:09]} Qd6 {[%emt 00:00:14] [%clk 00:12:03]} 22. Bb5 {[%emt 00:01:59] [%clk
00:11:20]} Ng6 {[%emt 00:02:15] [%clk 00:09:58]} 23. Qd2 {[%emt 00:00:40] [%clk
00:10:51]} Rab8 {[%emt 00:01:57] [%clk 00:08:10]} 24. Bxc6 {[%emt 00:00:22]
[%clk 00:10:39]} Rxc6 {[%emt 00:00:07] [%clk 00:08:14]} 25. Rxc6 {[%emt
00:01:16] [%clk 00:09:33]} Bxc6 {[%emt 00:00:02] [%clk 00:08:22]} 26. Nf4 {[%emt
00:00:02] [%clk 00:09:41]} Nxf4 {[%emt 00:02:50] [%clk 00:05:43]} 27. exf4
{[%emt 00:00:01] [%clk 00:09:49]} h6 {[%emt 00:01:58] [%clk 00:03:54]} 28. Ne5
{[%emt 00:00:04] [%clk 00:09:55]} Be8 {[%emt 00:00:07] [%clk 00:03:57]} 29. Rc5
{[%emt 00:00:21] [%clk 00:09:45]} Kh7 {[%emt 00:00:04] [%clk 00:04:04]} 30. Qc2
{[%emt 00:00:32] [%clk 00:09:23]} Qe7 {[%emt 00:00:21] [%clk 00:03:53]} 31. Rc7
{[%emt 00:00:42] [%clk 00:08:52]} Qh4 {[%emt 00:00:06] [%clk 00:03:56]} 32.
Rxg7+ {[%emt 00:02:39] [%clk 00:06:23]} Kxg7 {[%emt 00:00:01] [%clk 00:04:05]}
33. Qc7+ {[%clk 00:06:32]} Kf8 {[%emt 00:01:20] [%clk 00:02:54]} 34. Qxb8 {[%emt
00:00:01] [%clk 00:06:41]} Qh5 {[%emt 00:00:03] [%clk 00:03:02]} 35. f3 {[%emt
00:00:26] [%clk 00:06:26]} Kg7 {[%emt 00:01:22] [%clk 00:01:49]} 36. Qd8 {[%emt
00:01:06] [%clk 00:05:30]} Bb5 {[%emt 00:01:21] [%clk 00:00:38]} 37. Qe7+ {[%emt
00:00:10] [%clk 00:05:30]} Kh8 {[%emt 00:00:11] [%clk 00:00:37]} 38. Qf8+ {[%emt
00:00:31] [%clk 00:05:08]} Kh7 {[%emt 00:00:08] [%clk 00:00:40]} 39. Qe7+ {[%emt
00:01:28] [%clk 00:03:50]} Kh8 {[%emt 00:00:02] [%clk 00:00:48]} 40. Qxb4 {[%emt
00:00:20] [%clk 00:03:40]} Qe8 {[%emt 00:00:07] [%clk 00:00:50]} 41. Qxa3 {[%emt
00:00:07] [%clk 00:03:44]} Qc8 {[%emt 00:00:07] [%clk 00:00:52]} 42. Qc5 {[%emt
00:00:08] [%clk 00:03:47]} Qa6 {[%emt 00:00:22] [%clk 00:00:40]} 43. Qf8+ {[%emt
00:00:03] [%clk 00:03:53]} Kh7 {[%emt 00:00:03] [%clk 00:00:47]} 44. Qf7+ {[%emt
00:00:02] [%clk 00:04:02]} 1-0

[Site "Europe Echecs"]